[Event "98th Caplin Hastings Masters 2024-25"]
[Site "Hastings"]
[Date "2024.12.29"]
[Round "3.18"]
[White "Zhang, Pengxiang"]
[Black "Chandler, Cliff R"]
[Result "1-0"]
[ECO "B01"]
[WhiteElo "2567"]
[BlackElo "2161"]
[Annotator "TA"]
[PlyCount "57"]
[EventDate "2024.12.23"]
[EventType "swiss"]
[EventCountry "ENG"]
[SourceTitle "playchess.com"]
[Source "ChessBase"]
[SourceQuality "1"]
[TimeControl "5400+30"]

{[%evp 9,57,56,58,67,54,65,101,85,123,110,124,143,241,259,227,81,169,163,220,224,216,203,216,220,312,321,310,257,245,258,242,233,314,328,418,418,417,316,312,216,616,612,575,567,571,574,677,693,672,649]} 1. e4 {[%emt 0:00:07]} d5 {[%emt 0:00:10]} 2. exd5 {[%emt 0:00:10]} Nf6 {[%emt 0:00:08]} 3. d4 {[%emt 0:00:04]} Bg4 {[%emt 0:00:23]} 4. f3 {[%emt 0:00:22]} Bf5 {[%emt 0:00:17]} 5. g4 {[%emt 0:00:51]} Bg6 {[%emt 0:00:27]} 6. c4 {[%emt 0:00:59]} e6 {[%emt 0:00:51]} 7. Nc3 {[%emt 0:02:03]} c5 {[%emt 0:06:07]} 8. Be3 {[%emt 0:10:43]} Nbd7 {[%emt 0:20:07]} 9. h4 {[%emt 0:04:04]} cxd4 {[%emt 0:07:15]} 10. Bxd4 {[%emt 0:00:33]} e5 {[%emt 0:00:36] [#]} (10... h6 $16) 11. Be3 $1 $18 {[%emt 0:02:17]} h6 {[%emt 0:01:35]} 12. Bd3 {[%emt 0:05:33]} (12. d6 $18 {has better winning chances.}) 12... Bxd3 {[%emt 0:07:38]} (12... e4 $16 13. h5 (13. Nxe4 Bxe4 14. fxe4 Bb4+ 15. Kf1 Qe7 $14) (13. fxe4 Bb4 $11) 13... Bh7 14. fxe4 (14. Nxe4 Bxe4 15. fxe4 Bb4+ 16. Bd2 Bxd2+ 17. Qxd2 Ne5 $16) (14. Bxe4 Nxe4 15. Nxe4 Bb4+ 16. Bd2 Bxd2+ 17. Qxd2 O-O $11) 14... Bb4) 13. Qxd3 {[%emt 0:00:03]} Bc5 {[%emt 0:00:29]} (13... Rc8 $142) 14. Bxc5 {[%emt 0:08:51]} Nxc5 {[%emt 0:00:10]} 15. Qe3 {[%emt 0:00:04][%csl LRc5,LRe5]} Qb6 {[%emt 0:00:39]} 16. Qxe5+ {[%emt 0:04:10]} Kf8 {[%emt 0:02:56]} (16... Qe6 $142 17. Qxe6+ (17. dxe6 Nd3+ 18. Kf1 Nxe5 $16) 17... fxe6) 17. O-O-O {[%emt 0:01:09]} Re8 {[%emt 0:01:11]} 18. Qf4 {[%emt 0:03:17]} Nfd7 {[%emt 0:01:04]} 19. Nh3 {[%emt 0:32:14]} Ne5 {[%emt 0:07:24]} 20. Nf2 {[%emt 0:00:58] Prevents Ned3+.} Qb4 {[%emt 0:04:49]} 21. Rd4 {[%emt 0:01:45]} f6 {[%emt 0:06:14]} 22. Rhd1 {[%emt 0:01:53]} Kf7 {[%emt 0:02:09]} 23. h5 {[%emt 0:06:53] Wards off Ng6} Rc8 {[%emt 0:01:57]} 24. Kb1 {[%emt 0:01:25] And now Qf5 would win.} Ncd7 $2 {[%emt 0:01:52]} (24... Rhe8 25. Rc1 Kf8) 25. Qf5 {[%emt 0:02:16]} Rhe8 {[%emt 0:01:24] [#]} 26. c5 $1 {[%emt 0:05:33] Dodges Nb6} Qxc5 {[%emt 0:02:31]} 27. f4 {[%emt 0:00:07]} Nc4 {[%emt 0:08:42]} 28. Qxd7+ {[%emt 0:00:45]} Re7 {[%emt 0:00:08]} 29. Qb5 {[%emt 0:00:46]} 1-0

[Event "98th Caplin Hastings Masters 2024-25"]
[Site "Hastings"]
[Date "2024.12.29"]
[Round "3.19"]
[White "Brewer, Callum D"]
[Black "Royal, Shreyas"]
[Result "1/2-1/2"]
[ECO "B51"]
[WhiteElo "2151"]
[BlackElo "2522"]
[Annotator "TA"]
[PlyCount "88"]
[EventDate "2024.12.23"]
[EventType "swiss"]
[EventCountry "ENG"]
[SourceTitle "playchess.com"]
[Source "ChessBase"]
[SourceQuality "1"]
[TimeControl "5400+30"]

{[%evp 9,88,18,10,0,12,0,44,42,37,39,44,16,34,35,40,25,12,17,22,16,28,25,20,27,21,27,29,0,29,0,0,-16,0,0,-11,-9,-13,-10,0,-2,57,41,39,0,54,-28,22,30,87,0,0,0,0,0,0,0,0,0,5,7,65,77,63,77,70,0,0,0,0,0,0,0,0,0,0,0,0,0,0,0,0]} 1. e4 {[%emt 0:01:01]} c5 {[%emt 0:00:05]} 2. Nf3 {[%emt 0:00:08]} d6 {[%emt 0:00:05]} 3. Bb5+ {[%emt 0:00:04]} Nd7 {[%emt 0:00:05]} 4. d4 {[%emt 0:00:23]} cxd4 {[%emt 0:00:14]} 5. Qxd4 {[%emt 0:00:07]} a6 {[%emt 0:00:18]} 6. Be2 {[%emt 0:00:08]} Ngf6 {[%emt 0:00:29]} 7. O-O {[%emt 0:00:09]} e6 {[%emt 0:05:41]} 8. c4 {[%emt 0:05:27]} Be7 {[%emt 0:00:06]} 9. Nc3 {[%emt 0:00:02]} O-O {[%emt 0:00:07]} 10. h3 {[%emt 0:03:03]} Qc7 {[%emt 0:02:55]} 11. Be3 {[%emt 0:08:23]} Ne5 {[%emt 0:00:23]} 12. Nxe5 {[%emt 0:05:28]} dxe5 {[%emt 0:00:07]} 13. Qb6 {[%emt 0:00:13]} Qb8 {[%emt 0:07:14]} 14. Rfd1 {[%emt 0:05:17]} Bd7 {[%emt 0:02:11]} 15. Bc5 {[%emt 0:12:53]} Bxc5 {[%emt 0:00:05]} 16. Qxc5 {[%emt 0:00:03]} Bc6 {[%emt 0:00:05]} 17. f3 {[%emt 0:12:22]} Rc8 {[%emt 0:13:38][%cal Oc6a4,Bf8c8,Bc8d8,Bd8d4][%mdl 32] Hoping for ...Ba4!.} 18. Qf2 {[%emt 0:03:07]} Qc7 {[%emt 0:07:43]} 19. Kh2 {[%emt 0:22:37]} Rd8 {[%emt 0:02:41]} 20. Bf1 {[%emt 0:00:52]} Rd4 {[%emt 0:00:42]} 21. Qc2 {[%emt 0:03:21]} Be8 {[%emt 0:05:56]} 22. b3 {[%emt 0:01:43]} Rad8 {[%emt 0:01:05]} 23. Ne2 {[%emt 0:00:29]} R4d6 {[%emt 0:00:07]} 24. Nc3 {[%emt 0:01:19] [#]} b5 {[%emt 0:02:36]} 25. Rxd6 $14 {[%emt 0:01:48]} Rxd6 {[%emt 0:00:01]} 26. Rd1 {[%emt 0:00:40]} Rd4 {[%emt 0:00:04]} (26... b4 $11 27. Ne2 Nd7) 27. Bd3 {[%emt 0:06:25]} (27. cxb5 $14 axb5 28. Rc1) 27... bxc4 {[%emt 0:08:05]} (27... b4 $142 28. Ne2 Rd6) 28. Bxc4 $11 {[%emt 0:00:25]} Bb5 {[%emt 0:00:03]} 29. Ne2 {[%emt 0:01:17]} (29. Bxb5 $16 axb5 30. Rc1) 29... Rxd1 {[%emt 0:01:57]} 30. Qxd1 {[%emt 0:00:01]} Bxc4 {[%emt 0:00:05]} 31. bxc4 {[%emt 0:00:12][%mdl 4096] Endgame KQN-KQN} Nd7 {[%emt 0:00:04]} 32. Qa4 {[%emt 0:01:18]} Qd6 {[%emt 0:00:05]} 33. Nc1 {[%emt 0:01:20]} f5 {[%emt 0:12:36]} 34. Nb3 {[%emt 0:01:06][%cal Oc4c5]} fxe4 {[%emt 0:00:07]} (34... h6 $11) 35. fxe4 $14 {[%emt 0:00:07][%cal Oc4c5] And now c5! would win.} Nf6 {[%emt 0:00:06][%cal Og8f7]} 36. c5 {[%emt 0:01:40]} Qd3 {[%emt 0:00:02][%cal Og8f7]} 37. c6 {[%emt 0:01:24]} ({Better is} 37. Qc6 $14 Qxe4 38. Qxe6+ (38. Qxa6 Kf7 $11) 38... Kf8 39. c6 (39. Qxa6 Qf4+ 40. Kh1 Ne4 $11) 39... Qf4+ 40. Kg1) 37... Nxe4 $11 {[%emt 0:13:17]} 38. c7 {[%emt 0:00:10][%cal Ra4e8]} Qg3+ {[%emt 0:00:04]} 39. Kg1 {[%emt 0:00:17][%cal Ra4e8]} Qf2+ {[%emt 0:00:05]} 40. Kh2 {[%emt 0:01:14]} Qf4+ {[%emt 0:00:04]} 41. Kg1 {[%emt 0:00:22] Qe8+ would kill now.} Qe3+ {[%emt 0:00:49]} 42. Kh2 {[%emt 0:00:12][%cal Ra4e8]} Qg3+ {[%emt 0:01:28]} 43. Kg1 {[%emt 0:00:02][%cal Ra4e8]} Qe1+ {[%emt 0:00:06]} 44. Kh2 {[%emt 0:00:10][%cal Ra4e8]} Qg3+ {[%emt 0:00:15]} 1/2-1/2

[Event "98th Caplin Hastings Masters 2024-25"]
[Site "Hastings"]
[Date "2024.12.29"]
[Round "3.20"]
[White "Zhang, Junyi"]
[Black "Balaji, Aaravamudhan"]
[Result "0-1"]
[ECO "C58"]
[WhiteElo "2070"]
[BlackElo "2364"]
[Annotator "TA"]
[PlyCount "76"]
[EventDate "2024.12.23"]
[EventType "swiss"]
[EventCountry "ENG"]
[SourceTitle "playchess.com"]
[Source "ChessBase"]
[SourceQuality "1"]
[TimeControl "5400+30"]

{[%evp 14,76,19,26,35,18,24,22,23,15,22,16,22,19,28,0,21,-4,0,-6,0,-61,-52,-52,-24,-141,-122,-117,-101,-110,-81,-167,-157,-162,-145,-171,-162,-183,-191,-193,-175,-229,-219,-214,-221,-269,-236,-311,-285,-349,-355,-417,-395,-464,-451,-554,-572,-595,-595,-718,-718,-724,-722,-696,-692]} 1. e4 {[%emt 0:00:01]} e5 {[%emt 0:00:27]} 2. Nf3 {[%emt 0:00:28]} Nc6 {[%emt 0:00:05]} 3. Bc4 {[%emt 0:00:11]} Nf6 {[%emt 0:00:07][%cal Bg8f6,Bf6d5,Bd5f4,Bf4d3][%mdl 32]} 4. Ng5 {[%emt 0:00:01]} d5 {[%emt 0:00:07]} 5. exd5 {[%emt 0:00:04]} Na5 {[%emt 0:00:04]} 6. Bb5+ {[%emt 0:00:07]} c6 {[%emt 0:00:03]} 7. dxc6 {[%emt 0:00:01]} bxc6 {[%emt 0:00:07]} 8. Bd3 {[%emt 0:00:08]} Nd5 {[%emt 0:00:05]} 9. Nf3 {[%emt 0:00:21][%cal Oe1g1]} (9. Nxh7 $2 Nf4 10. Be4 Rxh7 $19) 9... Bd6 {[%emt 0:00:28]} 10. O-O {[%emt 0:00:41]} Nf4 {[%emt 0:00:31]} 11. Re1 {[%emt 0:01:27]} Nxd3 {[%emt 0:00:12]} 12. cxd3 {[%emt 0:00:06][%cal Od3d4]} O-O {[%emt 0:00:06]} 13. Nc3 {[%emt 0:01:57]} Re8 {[%emt 0:01:22]} 14. b3 {[%emt 0:00:47]} c5 {[%emt 0:00:32]} 15. Bb2 {[%emt 0:00:18]} Nc6 {[%emt 0:01:42]} 16. Ne4 {[%emt 0:01:11]} Bf8 {[%emt 0:02:44][%cal Of7f6]} 17. a3 {[%emt 0:05:18]} (17. Rc1 $11) 17... Qd5 $15 {[%emt 0:10:11][%cal Of7f6]} 18. Rc1 {[%emt 0:05:14]} Bg4 {[%emt 0:12:33][%cal Of7f5]} (18... Qxd3 $6 19. Nxc5 Qd5 20. b4 $14) 19. Ng3 {[%emt 0:22:22]} (19. h3 $11 {keeps the balance.} Bh5 20. g4) 19... Rab8 {[%emt 0:05:50][%cal Of7f6] Black is more active.} 20. Rc4 {[%emt 0:06:21]} Bxf3 {[%emt 0:11:04]} 21. gxf3 {[%emt 0:00:31]} Re6 {[%emt 0:11:23]} 22. Kh1 {[%emt 0:04:30]} (22. Bc3 $17) 22... Qxd3 {[%emt 0:01:50]} 23. Re3 {[%emt 0:00:29]} Qd5 {[%emt 0:00:28]} 24. Kg1 {[%emt 0:06:49]} g6 $36 {[%emt 0:08:57][%mdl 2048] Black is in control.} 25. Qc2 {[%emt 0:08:28]} Nd4 {[%emt 0:12:03]} 26. Bxd4 {[%emt 0:01:45]} cxd4 {[%emt 0:00:02]} ({Don't do} 26... exd4 27. Rxe6 Qxe6 28. Kg2 $17) 27. Rd3 {[%emt 0:02:10]} (27. Re4 $142) 27... Bxa3 $19 {[%emt 0:01:01]} 28. Qa2 {[%emt 0:07:44] White is weak on the dark squares} Ra6 {[%emt 0:10:50]} 29. Qc2 {[%emt 0:07:24] Rc8+ would now be deadly.} Kg7 {[%emt 0:01:29]} 30. Ne4 {[%emt 0:01:17]} Rbb6 {[%emt 0:01:29]} 31. Qd1 {[%emt 0:06:04]} Rc6 {[%emt 0:00:39]} 32. Qc2 {[%emt 0:01:02]} Be7 {[%emt 0:00:59]} 33. h3 {[%emt 0:01:15]} h5 {[%emt 0:00:04]} 34. Kg2 {[%emt 0:00:05]} h4 {[%emt 0:00:08] Wards off Ng3} 35. Rxc6 {[%emt 0:02:20]} Rxc6 {[%emt 0:00:50]} 36. Qa2 {[%emt 0:00:18]} Qb5 {[%emt 0:01:11]} 37. Qa4 {[%emt 0:00:13]} Qxa4 {[%emt 0:00:36]} (37... Qxd3 38. Qxc6 Qxb3 39. Qc7 $11) 38. bxa4 {[%emt 0:00:10]} f5 {[%emt 0:00:13]} 0-1

[Event "98th Caplin Hastings Masters 2024-25"]
[Site "Hastings"]
[Date "2024.12.29"]
[Round "3.21"]
[White "Roux, Baptiste"]
[Black "Brown, Tom"]
[Result "1-0"]
[ECO "B72"]
[WhiteElo "2338"]
[BlackElo "1932"]
[Annotator "TA"]
[PlyCount "49"]
[EventDate "2024.12.23"]
[EventType "swiss"]
[EventCountry "ENG"]
[SourceTitle "playchess.com"]
[Source "ChessBase"]
[SourceQuality "1"]
[TimeControl "5400+30"]

{[%evp 10,49,54,33,48,30,56,47,48,45,51,41,43,37,86,94,88,92,93,91,84,85,125,123,120,37,43,35,187,157,245,244,233,210,238,243,265,141,144,139,141,138]} 1. e4 {[%emt 0:07:50]} c5 {[%emt 0:00:06]} 2. Nf3 {[%emt 0:01:03]} g6 {[%emt 0:00:06]} 3. d4 {[%emt 0:00:32]} cxd4 {[%emt 0:00:11]} 4. Nxd4 {[%emt 0:00:10]} Nf6 {[%emt 0:00:30]} 5. Nc3 {[%emt 0:00:09]} d6 {[%emt 0:00:08]} 6. Be3 {[%emt 0:00:18]} Nc6 {[%emt 0:00:17]} 7. f3 {[%emt 0:00:21] Prevents Ng4} h5 {[%emt 0:01:07]} 8. Qd2 {[%emt 0:01:25]} Nxd4 {[%emt 0:00:10]} 9. Bxd4 {[%emt 0:04:54]} Bh6 {[%emt 0:00:09]} 10. Qf2 {[%emt 0:02:16]} Qa5 {[%emt 0:00:26]} 11. Bc4 {[%emt 0:07:05]} e5 {[%emt 0:11:43]} (11... Be6 $14 12. Bxe6 fxe6) 12. Be3 $16 {[%emt 0:00:43]} Bxe3 {[%emt 0:00:44]} 13. Qxe3 {[%emt 0:00:02]} Qc5 {[%emt 0:11:27]} 14. Qxc5 {[%emt 0:01:56]} dxc5 {[%emt 0:01:37]} 15. O-O-O {[%emt 0:01:26] White is more active.} Be6 {[%emt 0:03:15]} 16. Bxe6 {[%emt 0:01:22]} fxe6 {[%emt 0:00:05] [#]} 17. Rd6 {[%emt 0:13:30]} (17. Nb5 $1 $16 {[%cal Rb5c7] Nc7+ would now be deadly.} Ke7 18. Nd6) 17... Ke7 $14 {[%emt 0:00:15]} 18. Rhd1 {[%emt 0:00:06]} Nd5 $2 {[%emt 0:07:38]} 19. Nb5 $18 {[%emt 0:01:35]} (19. Nxd5+ Kxd6 20. Nf4+ (20. Nb6+ Ke7 $14) 20... Kc7 21. Nxe6+ Kc6 $11) 19... Ne3 {[%emt 0:06:54]} (19... Nb6 $16 {was worth a try.} 20. Nc7 Rac8) 20. Rd7+ {[%emt 0:03:25]} Kf6 {[%emt 0:00:23]} 21. R1d2 {[%emt 0:01:49]} Nc4 {[%emt 0:10:45]} 22. R2d3 {[%emt 0:01:19]} a6 {[%emt 0:00:07]} 23. Nd6 {[%emt 0:05:41]} ({White should play} 23. Nc7 $18 Rac8 24. Nxe6 Kxe6 25. b3 (25. Rxb7 Rhd8 $17)) 23... Nxd6 $16 {[%emt 0:00:27]} 24. R3xd6 {[%emt 0:00:06]} b5 {[%emt 0:00:22]} 25. Rc7 {[%emt 0:00:44]} 1-0

[Event "98th Caplin Hastings Masters 2024-25"]
[Site "Hastings"]
[Date "2024.12.29"]
[Round "3.22"]
[White "Burrows, Martin P"]
[Black "Lucas, Arthur"]
[Result "0-1"]
[ECO "B72"]
[WhiteElo "2042"]
[BlackElo "2335"]
[Annotator "TA"]
[PlyCount "70"]
[EventDate "2024.12.23"]
[EventType "swiss"]
[EventCountry "ENG"]
[SourceTitle "playchess.com"]
[Source "ChessBase"]
[SourceQuality "1"]
[TimeControl "5400+30"]

{[%evp 10,70,49,43,44,53,45,51,45,40,44,31,49,47,37,0,2,0,2,11,12,-10,-10,-20,-18,-18,-18,-69,-55,-90,-106,-93,-104,-99,-87,-165,-46,-74,-81,-80,-75,-218,125,0,0,0,0,0,-4,-81,-64,-29978,-29979,-29979,-29980,-29979,-29980,-29980,-29981,-29981,-29982,-29982,-29978]} 1. e4 {[%emt 0:00:04]} c5 {[%emt 0:08:27]} 2. Nf3 {[%emt 0:00:05]} d6 {[%emt 0:00:17]} 3. d4 {[%emt 0:00:06]} cxd4 {[%emt 0:00:04]} 4. Nxd4 {[%emt 0:00:06]} Nf6 {[%emt 0:00:04]} 5. Nc3 {[%emt 0:00:07]} g6 {[%emt 0:00:14]} 6. Be3 {[%emt 0:00:11]} Nc6 {[%emt 0:00:05]} 7. f3 {[%emt 0:01:07] Prevents Ng4} h5 {[%emt 0:00:08]} 8. Qd2 {[%emt 0:00:59]} Nxd4 {[%emt 0:00:55]} 9. Bxd4 {[%emt 0:00:24]} Bh6 {[%emt 0:00:09]} 10. Qf2 {[%emt 0:00:30]} Qa5 {[%emt 0:00:47]} 11. Bb5+ {[%emt 0:00:35]} Kf8 {[%emt 0:00:44]} 12. O-O {[%emt 0:03:11]} e5 {[%emt 0:01:08]} 13. Be3 {[%emt 0:00:30]} Bxe3 {[%emt 0:00:25]} 14. Qxe3 {[%emt 0:00:06]} Be6 {[%emt 0:00:53]} 15. Kh1 {[%emt 0:10:15]} (15. Ba4 {seems wilder.} Qc5 16. Kf2 a6 17. Bb3) 15... Rc8 {[%emt 0:02:12][%cal Oc8c3]} 16. Be2 {[%emt 0:02:30]} Qc5 {[%emt 0:07:52]} 17. Qg5 {[%emt 0:03:37]} (17. Qxc5 {simplifies} Rxc5 18. Bd3 Ke7 19. Kg1) 17... Kg7 {[%emt 0:03:08]} 18. Rad1 {[%emt 0:00:56]} (18. h4 $11) 18... h4 $15 {[%emt 0:07:13]} 19. f4 {[%emt 0:05:15]} Nh5 $1 {[%emt 0:07:40]} 20. Bxh5 {[%emt 0:01:14]} (20. Qxh4 $2 Nxf4 21. Qg3 Rxh2+ 22. Qxh2 Rh8 $19) (20. f5 $2 Ng3+ 21. hxg3 hxg3+ $19) 20... Rxh5 {[%emt 0:00:05]} 21. Qe7 {[%emt 0:00:14][%csl LRb7,LRd6]} h3 $1 {[%emt 0:06:26]} 22. g3 {[%emt 0:08:30]} (22. gxh3 $17 Bxh3 23. fxe5 Bxf1 24. Qf6+ Kg8 25. Rxf1 Qxe5 (25... Rxe5 $2 26. Qxf7+ Kh8 27. Qxg6 $18) 26. Qxf7+ Kh8 27. Rf2) 22... exf4 {[%emt 0:17:41]} (22... Qb4 $19 {( -> ...Rxc3)} 23. Qxd6 Qxb2) 23. gxf4 {[%emt 0:08:47][%cal Of4f5]} Qb4 {[%emt 0:19:45]} 24. Qxd6 {[%emt 0:29:59]} Qxb2 {[%emt 0:00:22]} 25. f5 {[%emt 0:02:01]} gxf5 $2 {[%emt 0:11:44] Active counter play!} (25... Qxc3 26. fxe6 fxe6 (26... Qxc2 27. Rxf7+ Kh6 28. Qf4+ Rg5 29. Rg1) 27. Qe7+ Kh6 28. Rf7 $11) (25... Qxc2 $19 {[%csl Gh3][%cal Rc2g2]} 26. Rd2 Qxc3 27. fxe6 Qe3 28. Qd4+ (28. exf7 $2 Qxe4+ 29. Kg1 Rg5+ $19) (28. Rxf7+ $2 Kh6 $19) 28... Qxd4 29. Rxd4 fxe6 30. Rd7+ Kh6 31. Rxb7 Ra5) 26. Rg1+ {[%emt 0:09:15]} ({White must play} 26. exf5 $16 {Intending Qd4+ and mate.} Qxc3 (26... Bxf5 $2 27. Rxf5 Rxf5 28. Rg1+ $18) (26... Rxf5 $2 27. Rg1+ Kh6 28. Rd3 $18) 27. fxe6 Qc6+ (27... fxe6 28. Qe7+ Kh8 29. Rf8+ Rxf8 30. Qxf8+ Kh7 31. Qf7+ Kh6 32. Qxe6+ Kg5 33. Rg1+ Kf4 34. Rg4+ Kf3 35. Qe4+ Kf2 36. Rf4+) 28. Qxc6 Rxc6 29. exf7 (29. Rxf7+ Kg6 $14)) 26... Kh7 $11 {[%emt 0:00:33] Some like it hot} 27. Nd5 {[%emt 0:00:42]} Rxc2 {[%emt 0:03:02]} (27... fxe4 $6 28. Qe7 Rh6 (28... Rxd5 29. Qh4+) (28... Bxd5 29. Rxd5) 29. c3 $16) 28. Ne3 $1 {[%emt 0:04:26] and Qg3 should not be overlooked Repels Rg2} Rc8 {[%emt 0:01:40] Threatens to win with ...Qf2.} 29. exf5 {[%emt 0:03:54] [#]} (29. Nd5 $11 {keeps the balance.}) 29... Qf2 $1 $40 {[%emt 0:00:45][%mdl 128] ( -> ...Qf3+) Black is up to no good.} (29... Bxf5 $2 30. Nxf5 Rxf5 31. Rd3 $18) (29... Bxa2 $6 30. Ng4 Rc6 31. Qg3 $11) 30. fxe6 $4 {[%emt 0:04:35][%mdl 8192] [#]} (30. Rg3 $15 Bxf5 (30... Bxa2 $2 {loses.} 31. Ng4 $18) 31. Qd4) 30... Qf3+ $1 {[%emt 0:00:30]} (30... Qxe3 31. Qd3+ Qxd3 32. Rxd3 $11) 31. Ng2 {[%emt 0:00:01]} Rg5 {[%emt 0:00:24]} 32. Qd2 {[%emt 0:01:42]} hxg2+ {[%emt 0:00:30]} ({Worse is} 32... Rxg2 33. Rxg2 Qxg2+ (33... hxg2+ 34. Kg1 $17) 34. Qxg2 hxg2+ 35. Kg1 $15) 33. Rxg2 {[%emt 0:00:09]} Rxg2 {[%emt 0:00:06]} 34. Qd3+ {[%emt 0:00:55]} Qxd3 {[%emt 0:00:08]} 35. Rxd3 {[%emt 0:00:01]} Re2 {[%emt 0:00:20]} 0-1

[Event "98th Caplin Hastings Masters 2024-25"]
[Site "Hastings"]
[Date "2024.12.29"]
[Round "3.23"]
[White "Lux, Hugo de Melo"]
[Black "Dette, Jan"]
[Result "1-0"]
[ECO "C11"]
[WhiteElo "2327"]
[BlackElo "2102"]
[Annotator "RC"]
[PlyCount "87"]
[EventDate "2024.12.23"]
[EventType "swiss"]
[EventCountry "ENG"]
[SourceTitle "playchess.com"]
[Source "ChessBase"]
[SourceQuality "1"]
[TimeControl "5400+30"]

1. e4 {[%emt 0:07:32]} e6 {[%emt 0:00:12]} 2. d4 {[%emt 0:00:18]} d5 {[%emt 0:00:06]} 3. Nc3 {[%emt 0:00:06]} Nf6 {[%emt 0:00:07]} 4. e5 {[%emt 0:00:06]} Nfd7 {[%emt 0:00:04]} 5. f4 {[%emt 0:00:02]} c5 {[%emt 0:00:27]} 6. Nf3 {[%emt 0:00:06]} Nc6 {[%emt 0:01:47]} 7. Be3 {[%emt 0:00:06]} Be7 {[%emt 0:01:16]} 8. a3 {[%emt 0:00:48]} f6 {[%emt 0:07:28]} 9. exf6 {[%emt 0:22:06]} Bxf6 {[%emt 0:01:03]} 10. Qd2 {[%emt 0:03:20]} cxd4 {[%emt 0:03:49]} 11. Nxd4 {[%emt 0:00:21]} Nxd4 {[%emt 0:02:48]} 12. Bxd4 {[%emt 0:00:02]} O-O {[%emt 0:00:10]} 13. O-O-O {[%emt 0:01:21]} e5 {[%emt 0:12:49]} 14. fxe5 {[%emt 0:06:31]} Nxe5 {[%emt 0:00:06]} 15. Kb1 {[%emt 0:12:28]} Bg4 {[%emt 0:05:41]} 16. Re1 {[%emt 0:06:28]} Nc4 {[%emt 0:01:18]} 17. Qf4 {[%emt 0:00:52]} Bh5 {[%emt 0:06:30]} 18. Bxc4 {[%emt 0:05:03]} dxc4 {[%emt 0:00:06]} 19. Bxf6 {[%emt 0:00:09]} Rxf6 {[%emt 0:00:07]} 20. Qxc4+ {[%emt 0:00:24]} Bf7 {[%emt 0:00:27]} 21. Qc5 {[%emt 0:00:57]} b6 {[%emt 0:04:20]} 22. Qe3 {[%emt 0:05:01]} Qc7 {[%emt 0:00:48]} 23. h4 {[%emt 0:02:03]} Re8 {[%emt 0:04:43]} 24. Qg5 {[%emt 0:00:22]} Rd8 {[%emt 0:04:06]} 25. Rd1 {[%emt 0:00:26]} h6 {[%emt 0:02:29]} 26. Rxd8+ {[%emt 0:01:14]} Qxd8 {[%emt 0:00:07]} 27. Qe3 {[%emt 0:00:15]} Qa8 {[%emt 0:01:03]} 28. Rg1 {[%emt 0:02:05]} a6 {[%emt 0:05:15]} 29. b3 {[%emt 0:02:47]} Qc6 {[%emt 0:01:24]} 30. Kb2 {[%emt 0:00:18]} Bg6 {[%emt 0:02:04]} 31. g4 {[%emt 0:01:27]} Rf3 {[%emt 0:02:32]} 32. Qd4 {[%emt 0:00:21]} b5 {[%emt 0:02:33]} 33. h5 {[%emt 0:10:02]} Bf7 {[%emt 0:00:35]} 34. Ne4 {[%emt 0:02:25]} a5 {[%emt 0:03:10]} 35. Nd6 {[%emt 0:04:35]} Rf6 {[%emt 0:09:24]} 36. Nf5 {[%emt 0:00:44]} Qe6 {[%emt 0:00:21]} 37. Qd8+ {[%emt 0:03:20]} Kh7 {[%emt 0:00:06]} 38. Qf8 {[%emt 0:02:21]} Rxf5 {[%emt 0:01:23]} 39. gxf5 {[%emt 0:00:05]} Qf6+ {[%emt 0:00:08]} 40. Kb1 {[%emt 0:00:15]} a4 {[%emt 0:00:14]} 41. Rg6 {[%emt 0:01:03]} Qc3 {[%emt 0:01:40]} 42. Qxf7 {[%emt 0:00:11]} Qe1+ {[%emt 0:00:17]} 43. Ka2 {[%emt 0:00:08]} axb3+ {[%emt 0:00:05]} 44. Qxb3 {[%emt 0:00:06]} 1-0

[Event "98th Caplin Hastings Masters 2024-25"]
[Site "Hastings"]
[Date "2024.12.29"]
[Round "3.24"]
[White "Nielsen, Andre"]
[Black "Verbin, Valentina"]
[Result "1-0"]
[ECO "C13"]
[WhiteElo "2276"]
[BlackElo "2093"]
[Annotator "RC"]
[PlyCount "107"]
[EventDate "2024.12.23"]
[EventType "swiss"]
[EventCountry "ENG"]
[SourceTitle "playchess.com"]
[Source "ChessBase"]
[SourceQuality "1"]
[TimeControl "5400+30"]

1. e4 {[%emt 0:01:50]} e6 {[%emt 0:01:01]} 2. d4 {[%emt 0:00:35]} d5 {[%emt 0:00:07]} 3. Nc3 {[%emt 0:00:19]} Nf6 {[%emt 0:00:13]} 4. Bg5 {[%emt 0:00:44]} dxe4 {[%emt 0:00:19]} 5. Nxe4 {[%emt 0:00:57]} Be7 {[%emt 0:00:14]} 6. Nxf6+ {[%emt 0:04:32]} Bxf6 {[%emt 0:00:09]} 7. Bxf6 {[%emt 0:00:09]} Qxf6 {[%emt 0:00:04]} 8. Nf3 {[%emt 0:00:16]} O-O {[%emt 0:00:46]} 9. Qd3 {[%emt 0:00:19]} Nd7 {[%emt 0:01:04]} 10. O-O-O {[%emt 0:07:01]} b6 {[%emt 0:00:38]} 11. Qe4 {[%emt 0:16:18]} Qh6+ {[%emt 0:02:08]} 12. Kb1 {[%emt 0:00:58]} Rb8 {[%emt 0:00:33]} 13. Bd3 {[%emt 0:02:07]} Bb7 {[%emt 0:00:49]} 14. Qe3 {[%emt 0:07:10]} Qxe3 {[%emt 0:01:57]} 15. fxe3 {[%emt 0:02:20]} c5 {[%emt 0:04:31]} 16. Rhf1 {[%emt 0:02:28]} Nf6 {[%emt 0:06:47]} 17. Rde1 {[%emt 0:04:12]} Rbd8 {[%emt 0:09:38]} 18. c3 {[%emt 0:17:53]} Be4 {[%emt 0:09:11]} 19. Kc2 {[%emt 0:02:34]} b5 {[%emt 0:09:26]} 20. Bxe4 {[%emt 0:01:52]} Nxe4 {[%emt 0:00:04]} 21. Ne5 {[%emt 0:00:49]} b4 {[%emt 0:03:13]} 22. Kd3 {[%emt 0:05:49]} Nd6 {[%emt 0:14:56]} 23. dxc5 {[%emt 0:09:42]} Nb7+ {[%emt 0:02:00]} 24. Kc2 {[%emt 0:00:22]} bxc3 {[%emt 0:14:07]} 25. c6 {[%emt 0:00:44]} Nd6 {[%emt 0:11:31]} 26. Rd1 {[%emt 0:03:47]} Nf5 {[%emt 0:00:44]} 27. Rxd8 {[%emt 0:00:38]} Rxd8 {[%emt 0:00:34]} 28. Kxc3 {[%emt 0:01:15]} f6 {[%emt 0:03:13]} 29. Nc4 {[%emt 0:02:38]} Rc8 {[%emt 0:00:03]} 30. e4 {[%emt 0:02:19]} Ne7 {[%emt 0:00:38]} 31. Rd1 {[%emt 0:00:33]} Nxc6 {[%emt 0:00:28]} 32. b3 {[%emt 0:00:37]} Ne5 {[%emt 0:01:37]} 33. Rd6 {[%emt 0:00:36]} Kf7 {[%emt 0:00:19]} 34. Ra6 {[%emt 0:00:15]} Rc7 {[%emt 0:00:24]} 35. Kd4 {[%emt 0:01:36]} Nxc4 {[%emt 0:02:05]} 36. bxc4 {[%emt 0:00:07]} h5 {[%emt 0:00:27]} 37. c5 {[%emt 0:00:48]} Ke7 {[%emt 0:00:24]} 38. Kc4 {[%emt 0:01:14]} Kd7 {[%emt 0:00:46]} 39. Rd6+ {[%emt 0:00:27]} Ke7 {[%emt 0:00:02]} 40. Rd3 {[%emt 0:00:15]} Rd7 {[%emt 0:01:12]} 41. Ra3 {[%emt 0:00:35]} Rc7 {[%emt 0:01:20]} 42. Rh3 {[%emt 0:00:29]} g6 {[%emt 0:00:07]} 43. Rg3 {[%emt 0:00:29]} Kf7 {[%emt 0:00:46]} 44. Kb5 {[%emt 0:00:21]} Rb7+ {[%emt 0:00:41]} 45. Kc6 {[%emt 0:00:38]} Rb8 {[%emt 0:00:35]} 46. Ra3 {[%emt 0:01:19]} Rc8+ {[%emt 0:00:19]} 47. Kd6 {[%emt 0:00:29]} Ra8 {[%emt 0:01:14]} 48. Kd7 {[%emt 0:00:24]} Re8 {[%emt 0:00:13]} 49. c6 {[%emt 0:00:16]} Re7+ {[%emt 0:00:48]} 50. Kd6 {[%emt 0:00:26]} e5 {[%emt 0:00:31]} 51. c7 {[%emt 0:00:44]} Re6+ {[%emt 0:00:22]} 52. Kd5 {[%emt 0:00:21]} Re8 {[%emt 0:00:20]} 53. Rxa7 {[%emt 0:00:13]} Kf8 {[%emt 0:00:50]} 54. Rb7 {[%emt 0:00:25]} 1-0